fUST/lending_fUST_20250206
["ID","MTS","AMOUNT","RATE_DAILY","PERIOD"]
[351787347,1738788641513,-500.0,0.00013698,2]
[351787349,1738788641524,-500.0,0.00013698,2]
[351787351,1738788641534,-500.0,0.00013698,2]
[351787352,1738788641544,-500.0,0.00013698,2]
[351787354,1738788641553,-500.0,0.00013698,2]
[351787356,1738788641563,-981.14,0.00013698,2]
[351787358,1738788641572,-643.09,0.00013698,2]
[351787361,1738788641582,-765.65,0.00013698,2]
[351787362,1738788641592,-500.0,0.00013698,2]
[351787365,1738788641602,-1445.94,0.00013698,2]
[351787367,1738788641612,-2283.23,0.00013698,2]
[351787368,1738788641621,-505.74199132,0.00013698,2]
[351787370,1738788641631,-500.0,0.00013698,2]
[351787372,1738788641640,-557.37,0.00013698,2]
[351787374,1738788641650,-988.3,0.00013698,2]
[351787377,1738788641659,-500.0,0.00013698,2]
[351787378,1738788641669,-500.0,0.00013698,2]
[351787381,1738788641678,-500.0,0.00013698,2]
[351787382,1738788641687,-1687.35,0.00013698,2]
[351787384,1738788641697,-796.21,0.00013698,2]
[351787387,1738788641707,-885.64,0.00013698,2]
[351787389,1738788641717,-500.0,0.00013698,2]
[351787391,1738788641726,-501.22673616,0.00013698,2]
[351787393,1738788641736,-500.0,0.00013698,2]
[351787395,1738788641751,-500.0,0.00013698,2]
[351787397,1738788641762,-500.0,0.00013698,2]
[351787399,1738788641772,-500.0,0.00013698,2]
[351787400,1738788641783,-500.0,0.00013698,2]
[351787403,1738788641793,-500.0,0.00013698,2]
[351787404,1738788641803,-500.0,0.00013698,2]
[351787407,1738788641813,-1834.15,0.00013698,2]
[351787408,1738788641823,-924.52,0.00013698,2]
[351787410,1738788641834,-511.03360105,0.00013698,2]
[351787413,1738788641844,-500.0,0.00013698,2]
[351787415,1738788641854,-901.29,0.00013698,2]
[351787417,1738788641863,-500.0,0.00013698,2]
[351787418,1738788641873,-500.0,0.00013698,2]
[351787421,1738788641882,-500.0,0.00013698,2]
[351787423,1738788641894,-821.92,0.00013698,2]
[351787425,1738788641908,-405.8795387,0.00013698,2]
[351787427,1738788641918,-4424.8,0.00013698,2]
[351787429,1738788641927,-3024.83,0.00013698,2]
[351787431,1738788641938,-500.0,0.00013698,2]
[351787433,1738788641947,-1377.94,0.00013698,2]
[351787435,1738788641957,-500.0,0.00013698,2]
[351787437,1738788641966,-500.0,0.00013698,2]
[351787439,1738788641976,-500.0,0.00013698,2]
[351787441,1738788641986,-500.0,0.00013698,2]
[351787443,1738788642001,-1000.0,0.00013698,2]
[351787445,1738788642010,-500.0,0.00013698,2]
[351787447,1738788642019,-511.64698148,0.00013698,2]
[351787449,1738788642028,-500.0,0.00013698,2]
[351787451,1738788642038,-524.45,0.00013698,2]
[351787453,1738788642047,-500.0,0.00013698,2]
[351787455,1738788642057,-284.45020118,0.00013698,2]
[351787456,1738788642066,-500.26325349,0.00013698,2]
[351787458,1738788642075,-500.0,0.00013698,2]
[351787460,1738788642085,-230.83926229,0.00013698,2]
[351787462,1738788642094,-500.0,0.00013698,2]
[351787464,1738788642103,-500.0,0.00013698,2]
[351787466,1738788642113,-2825.29,0.00013698,2]
[351787469,1738788642122,-500.0,0.00013698,2]
[351787471,1738788642132,-500.0,0.00013698,2]
[351787472,1738788642142,-2652.6,0.00013698,2]
[351787475,1738788642151,-500.0,0.00013698,2]
[351787476,1738788642161,-519.75081571,0.00013698,2]
[351787479,1738788642171,-2914.66,0.00013698,2]
[351787481,1738788642181,-841.09,0.00013698,2]
[351787482,1738788642191,-500.0,0.00013698,2]
[351787485,1738788642200,-500.0,0.00013698,2]
[351787487,1738788642210,-500.0,0.00013698,2]
[351787489,1738788642219,-1605.9,0.00013698,2]
[351787491,1738788642228,-500.0,0.00013698,2]
[351787492,1738788642239,-575.61,0.00013698,2]
[351787495,1738788642250,-500.0,0.00013698,2]
[351787497,1738788642260,-120096.66,0.00013698,2]
[351787499,1738788642270,-536.73,0.00013698,2]
[351787501,1738788642279,-2570.67,0.00013698,2]
[351787503,1738788642289,-500.0,0.00013698,2]
[351787505,1738788642298,-500.0,0.00013698,2]
[351787507,1738788642307,-500.0,0.00013698,2]
[351787509,1738788642317,-393.0,0.00013698,2]
[351787510,1738788642326,-500.0,0.00013698,2]
[351787512,1738788642336,-1064.77,0.00013698,2]
[351787515,1738788642346,-500.0,0.00013698,2]
[351787517,1738788642355,-500.0,0.00013698,2]
[351787519,1738788642364,-500.0,0.00013698,2]
[351787521,1738788642374,-500.0,0.00013698,2]
[351787523,1738788642383,-5069.96,0.00013698,2]
[351787525,1738788642392,-7969.7,0.00013698,2]
[351787527,1738788642401,-500.0,0.00013698,2]
[351787528,1738788642411,-6982.07,0.00013698,2]
[351787531,1738788642420,-500.0,0.00013698,2]
[351787533,1738788642430,-684.69,0.00013698,2]
[351787534,1738788642439,-500.0,0.00013698,2]
[351787537,1738788642449,-500.0,0.00013698,2]
[351787539,1738788642458,-500.0,0.00013698,2]
[351787540,1738788642471,-1027.29,0.00013698,2]
[351787542,1738788642483,-500.0,0.00013698,2]
[351787544,1738788642494,-706.71,0.00013698,2]
[351787546,1738788642503,-3105.37,0.00013698,2]
[351787548,1738788642513,-500.0,0.00013698,2]
[351787550,1738788642522,-3730.84,0.00013698,2]
[351787566,1738788642678,-500.0,0.00013698,2]
[351787567,1738788642688,-500.0,0.00013698,2]
[351787568,1738788642699,-500.0,0.00013698,2]
[351787569,1738788642708,-2911.4,0.00013698,2]
[351787570,1738788642718,-500.0,0.00013698,2]
[351787571,1738788642727,-500.0,0.00013698,2]
[351787572,1738788642736,-500.0,0.00013698,2]
[351787573,1738788642747,-500.0,0.00013698,2]
[351787574,1738788642756,-2683.47,0.00013698,2]
[351787575,1738788642766,-500.0,0.00013698,2]
[351787576,1738788642775,-500.0,0.00013698,2]
[351787577,1738788642785,-500.0,0.00013698,2]
[351787578,1738788642795,-500.0,0.00013698,2]
[351787579,1738788642804,-500.0,0.00013698,2]
[351787580,1738788642814,-500.0,0.00013698,2]
[351787582,1738788642823,-500.0,0.00013698,2]
[351787585,1738788642833,-500.0,0.00013698,2]
[351787587,1738788642842,-500.0,0.00013698,2]
[351787590,1738788642851,-500.0,0.00013698,2]
[351787593,1738788642861,-698.49,0.00013698,2]
[351787596,1738788642870,-500.0,0.00013698,2]
[351787599,1738788642880,-500.0,0.00013698,2]
[351787602,1738788642893,-3118.23,0.00013698,2]
[351787605,1738788642902,-3118.23,0.00013698,2]
[351787608,1738788642912,-3118.23,0.00013698,2]
[351787610,1738788642922,-3118.23,0.00013698,2]
[351787612,1738788642932,-3118.23,0.00013698,2]
[351787614,1738788642942,-3118.23,0.00013698,2]
[351787616,1738788642951,-3118.23,0.00013698,2]
[351787618,1738788642961,-3118.23,0.00013698,2]
[351787620,1738788642971,-3118.23,0.00013698,2]
[351787621,1738788642980,-3118.23,0.00013698,2]
[351787623,1738788642992,-500.0,0.00013698,2]
[351787625,1738788643001,-3118.23,0.00013698,2]
[351787627,1738788643010,-500.0,0.00013698,2]
[351787629,1738788643020,-3118.23,0.00013698,2]
[351787631,1738788643030,-3118.23,0.00013698,2]
[351787633,1738788643040,-3118.23,0.00013698,2]
[351787635,1738788643049,-3118.23,0.00013698,2]
[351787638,1738788643059,-500.0,0.00013698,2]
[351787639,1738788643069,-500.0,0.00013698,2]
[351787642,1738788643079,-3118.23,0.00013698,2]
[351787644,1738788643089,-500.0,0.00013698,2]
[351787646,1738788643098,-3118.23,0.00013698,2]
[351787648,1738788643108,-585.39,0.00013698,2]
[351787650,1738788643117,-3118.23,0.00013698,2]
[351787652,1738788643126,-3118.23,0.00013698,2]
[351787654,1738788643135,-3118.23,0.00013698,2]
[351787656,1738788643145,-3118.23,0.00013698,2]
[351787658,1738788643154,-3118.23,0.00013698,2]
[351787660,1738788643163,-3118.23,0.00013698,2]
[351787662,1738788643173,-500.0,0.00013698,2]
[351787665,1738788643195,-3118.44428907,0.00013698,2]
[351787667,1738788643206,-500.0,0.00013698,2]
[351787669,1738788643216,-928.33,0.00013698,2]
[351787671,1738788643226,-500.0,0.00013698,2]
[351787673,1738788643236,-500.0,0.00013698,2]
[351787675,1738788643249,-500.0,0.00013698,2]
[351787677,1738788643259,-643.69620347,0.00013698,2]
[351787679,1738788643270,-500.0,0.00013698,2]
[351787681,1738788643281,-500.0,0.00013698,2]
[351787683,1738788643291,-500.0,0.00013698,2]
[351787685,1738788643301,-500.0,0.00013698,2]
[351787687,1738788643312,-33200.17,0.00013698,2]
[351787690,1738788643322,-500.0,0.00013698,2]
[351787692,1738788643332,-501.98540406,0.00013698,2]
[351787694,1738788643342,-501.34143529,0.00013698,2]
[351787696,1738788643353,-500.0,0.00013698,2]
[351787698,1738788643364,-500.0,0.00013698,2]
[351787700,1738788643374,-226.82758223,0.00013698,2]
[351787702,1738788643385,-500.0,0.00013698,2]
[351787704,1738788643396,-2522.78,0.00013698,2]
[351787706,1738788643407,-500.0,0.00013698,2]
[351787708,1738788643417,-662.08,0.00013698,2]
[351787710,1738788643428,-500.0,0.00013698,2]
[351787712,1738788643439,-500.0,0.00013698,2]
[351787714,1738788643450,-500.0,0.00013698,2]
[351787716,1738788643461,-500.0,0.00013698,2]
[351787718,1738788643472,-500.0,0.00013698,2]
[351787721,1738788643482,-500.0,0.00013698,2]
[351787722,1738788643497,-500.0,0.00013698,2]
[351787725,1738788643508,-509.66229662,0.00013698,2]
[351787727,1738788643518,-3499.01,0.00013698,2]
[351787728,1738788643528,-1035.58,0.00013698,2]
[351787731,1738788643538,-500.0,0.00013698,2]
[351787733,1738788643548,-631.90590006,0.00013698,2]
[351787735,1738788643557,-502.42819887,0.00013698,2]
[351787737,1738788643567,-1189.27,0.00013698,2]
[351787739,1738788643577,-509.7,0.00013698,2]
[351787741,1738788643587,-500.0,0.00013698,2]
[351787743,1738788643596,-500.0,0.00013698,2]
[351787745,1738788643606,-5783.75,0.00013698,2]
[351787747,1738788643616,-841.85,0.00013698,2]
[351787749,1738788643625,-500.0,0.00013698,2]
[351787751,1738788643635,-500.0,0.00013698,2]
[351787753,1738788643645,-500.0,0.00013698,2]
[351787755,1738788643659,-340.59831337,0.00013698,2]
[351787757,1738788643670,-603.61,0.00013698,2]
[351787759,1738788643680,-500.82785727,0.00013698,2]
[351787761,1738788643691,-500.0,0.00013698,2]
[351787763,1738788643708,-661.55,0.00013698,2]
[351787765,1738788643727,-500.0,0.00013698,2]
[351787767,1738788643742,-500.0,0.00013698,2]
[351787769,1738788643752,-665.32,0.00013698,2]
[351787771,1738788643762,-816.61,0.00013698,2]
[351787773,1738788643772,-4818.43,0.00013698,2]
[351787776,1738788643783,-1082.04,0.00013698,2]
[351787778,1738788643793,-1532.63,0.00013698,2]
[351787780,1738788643803,-500.0,0.00013698,2]
[351787782,1738788643812,-500.0,0.00013698,2]
[351787784,1738788643822,-544.93240549,0.00013698,2]
[351787786,1738788643832,-500.0,0.00013698,2]
[351787788,1738788643842,-2630.72,0.00013698,2]
[351787790,1738788643851,-500.0,0.00013698,2]
[351787792,1738788643862,-2727.6,0.00013698,2]
[351787794,1738788643872,-500.0,0.00013698,2]
[351787796,1738788643881,-500.0,0.00013698,2]
[351787798,1738788643891,-600.01,0.00013698,2]
[351787800,1738788643902,-521.38,0.00013698,2]
[351787802,1738788643912,-500.0,0.00013698,2]
[351787804,1738788643921,-500.0,0.00013698,2]
[351787806,1738788643931,-2262.08,0.00013698,2]
[351787808,1738788643940,-874.3,0.00013698,2]
[351787810,1738788643950,-500.0,0.00013698,2]
[351787812,1738788643960,-663.13,0.00013698,2]
[351787814,1738788643970,-500.0,0.00013698,2]
[351787816,1738788643980,-500.0,0.00013698,2]
[351787818,1738788643991,-7949.79,0.00013698,2]
[351787820,1738788644001,-12289.29,0.00013698,2]
[351787822,1738788644011,-649.99,0.00013698,2]
[351787824,1738788644021,-500.0,0.00013698,2]
[351787826,1738788644031,-737.12,0.00013698,2]
[351787828,1738788644041,-500.0,0.00013698,2]
[351787830,1738788644051,-500.0,0.00013698,2]
[351787832,1738788644061,-500.0,0.00013698,2]
[351787834,1738788644071,-500.0,0.00013698,2]
[351787836,1738788644081,-500.0,0.00013698,2]
[351787838,1738788644090,-1901.6,0.00013698,2]
[351787841,1738788644100,-1301.58,0.00013698,2]
[351787843,1738788644110,-781.66,0.00013698,2]
[351787845,1738788644119,-500.0,0.00013698,2]
[351787847,1738788644128,-885.54,0.00013698,2]
[351787849,1738788644138,-500.0,0.00013698,2]
[351787851,1738788644147,-172.24545994,0.00013698,2]
[351787853,1738788644157,-4860.0,0.00013698,2]
[351787855,1738788644167,-1476.6,0.00013698,2]
[351787857,1738788644176,-500.0,0.00013698,2]
[351787859,1738788644186,-612.81846506,0.00013698,2]
[351787861,1738788644195,-500.0,0.00013698,2]
[351787863,1738788644205,-2649.07,0.00013698,2]
[351787865,1738788644216,-529.24,0.00013698,2]
[351787867,1738788644227,-785.13,0.00013698,2]
[351787869,1738788644237,-500.0,0.00013698,2]
[351787871,1738788644248,-500.0,0.00013698,2]
[351787873,1738788644258,-500.0,0.00013698,2]
[351787875,1738788644268,-1184.65,0.00013698,2]
[351787877,1738788644278,-500.0,0.00013698,2]
[351787879,1738788644288,-500.0,0.00013698,2]
[351787881,1738788644298,-500.0,0.00013698,2]
[351787883,1738788644308,-1894.37,0.00013698,2]
[351787885,1738788644318,-500.0,0.00013698,2]
[351787888,1738788644328,-500.0,0.00013698,2]
[351787890,1738788644338,-500.0,0.00013698,2]
[351787892,1738788644347,-500.0,0.00013698,2]
[351787894,1738788644357,-1049.34,0.00013698,2]
[351787896,1738788644367,-500.0,0.00013698,2]
[351787898,1738788644377,-500.0,0.00013698,2]
[351787900,1738788644387,-500.0,0.00013698,2]
[351787902,1738788644396,-500.0,0.00013698,2]
[351787904,1738788644406,-500.0,0.00013698,2]
[351787906,1738788644415,-500.0,0.00013698,2]
[351787908,1738788644426,-908.94,0.00013698,2]
[351787910,1738788644436,-500.0,0.00013698,2]
[351787912,1738788644446,-6236.15,0.00013698,2]
[351787914,1738788644456,-500.0,0.00013698,2]
[351787916,1738788644467,-500.0,0.00013698,2]
[351787918,1738788644477,-500.0,0.00013698,2]
[351787920,1738788644486,-500.0,0.00013698,2]
[351787922,1738788644500,-500.0,0.00013698,2]
[351787924,1738788644510,-500.0,0.00013698,2]
[351787926,1738788644520,-288.09,0.00013698,2]
[351787928,1738788644529,-500.0,0.00013698,2]
[351787930,1738788644538,-500.0,0.00013698,2]
[351787932,1738788644548,-1543.4,0.00013698,2]
[351787934,1738788644558,-2587.64,0.00013698,2]
[351787936,1738788644568,-1084.41,0.00013698,2]
[351787938,1738788644578,-500.0,0.00013698,2]
[351787940,1738788644588,-500.0,0.00013698,2]
[351787942,1738788644597,-635.48,0.00013698,2]
[351787944,1738788644607,-500.0,0.00013698,2]
[351787946,1738788644617,-500.0,0.00013698,2]
[351787948,1738788644626,-500.0,0.00013698,2]
[351787950,1738788644637,-500.0,0.00013698,2]
[351787952,1738788644647,-500.0,0.00013698,2]
[351787954,1738788644656,-6460.34,0.00013698,2]
[351787956,1738788644667,-500.0,0.00013698,2]
[351787958,1738788644677,-500.0,0.00013698,2]
[351787960,1738788644686,-475.30633217,0.00013698,2]
[351787962,1738788644695,-500.0,0.00013698,2]
[351787965,1738788644705,-493.45439239,0.00013698,2]
[351787967,1738788644714,-500.0,0.00013698,2]
[351787969,1738788644724,-500.0,0.00013698,2]
[351787970,1738788644734,-500.0,0.00013698,2]
[351787973,1738788644749,-500.0,0.00013698,2]
[351787975,1738788644759,-11606.33,0.00013698,2]
[351787977,1738788644769,-513.42,0.00013698,2]
[351787979,1738788644778,-1043.78,0.00013698,2]
[351787981,1738788644788,-611.69,0.00013698,2]
[351787983,1738788644797,-632.4681081,0.00013698,2]
[351787985,1738788644806,-533.1,0.00013698,2]
[351787987,1738788644815,-500.0,0.00013698,2]
[351787989,1738788644825,-500.0,0.00013698,2]
[351787991,1738788644835,-516.45699356,0.00013698,2]
[351787993,1738788644845,-500.0,0.00013698,2]
[351787995,1738788644855,-500.0,0.00013698,2]
[351787997,1738788644864,-500.0,0.00013698,2]
[351787999,1738788644874,-513.96,0.00013698,2]
[351788001,1738788644883,-280.72192247,0.00013698,2]
[351788003,1738788644893,-500.0,0.00013698,2]
[351788005,1738788644910,-500.0,0.00013698,2]
[351788007,1738788644920,-500.0,0.00013698,2]
[351788009,1738788644930,-501.55642339,0.00013698,2]
[351788011,1738788644939,-500.0,0.00013698,2]
[351788013,1738788644951,-7511.39,0.00013698,2]
[351788015,1738788644961,-500.0,0.00013698,2]
[351788017,1738788644971,-557.45,0.00013698,2]
[351788019,1738788644982,-545.92,0.00013698,2]
[351788021,1738788644997,-500.0,0.00013698,2]
[351788023,1738788645007,-964.76,0.00013698,2]
[351788025,1738788645017,-887.35,0.00013698,2]
[351788027,1738788645027,-664.96,0.00013698,2]
[351788030,1738788645037,-35074.3,0.00013698,2]
[351788031,1738788645047,-500.0,0.00013698,2]
[351788034,1738788645057,-500.0,0.00013698,2]
[351788036,1738788645066,-500.0,0.00013698,2]
[351788038,1738788645076,-596.3,0.00013698,2]
[351788040,1738788645086,-500.0,0.00013698,2]
[351788041,1738788645096,-186.924811,0.00013699,2]
[351788044,1738788645106,-500.0,0.00013699,2]
[351788046,1738788645116,-500.0,0.00013699,2]
[351788048,1738788645126,-500.0,0.00013699,2]
[351788050,1738788645136,-354.252,0.00013699,2]
[351788052,1738788645146,-151.0,0.000137,2]
[351788054,1738788645155,-151.0,0.000137,2]
[351788056,1738788645165,-151.0,0.000137,2]
[351788058,1738788645176,-151.0,0.000137,2]
[351788060,1738788645186,-7130.00861722,0.0001375,2]
[351788062,1738788645197,-500.0,0.00013766,7]
[351788064,1738788645208,-500.0,0.00013766,7]
[351788066,1738788645218,-500.0,0.00013766,7]
[351788068,1738788645228,-500.0,0.00013766,7]
[351788070,1738788645239,-500.0,0.00013766,7]
[351788072,1738788645254,-500.0,0.00013766,7]
[351788075,1738788645264,-500.0,0.00013766,7]
[351788077,1738788645277,-195.73,0.00013766,7]
[351788079,1738788645287,-151.0,0.000138,2]
[351788081,1738788645299,-151.0,0.000138,2]
[351788083,1738788645310,-151.0,0.000138,2]
[351788085,1738788645320,-151.0,0.000138,2]
[351788087,1738788645330,-151.0,0.000138,2]
[351788089,1738788645340,-151.0,0.000138,2]
[351788091,1738788645350,-151.0,0.00013835,2]
[351788093,1738788645360,-151.0,0.00013835,2]
[351788095,1738788645370,-197.955504,0.00013835,2]
[351788097,1738788645380,-151.0,0.00013835,2]
[351788099,1738788645390,-151.0,0.00013835,2]
[351788101,1738788645402,-500.0,0.00013835,2]
[351788103,1738788645412,-500.0,0.00013835,2]
[351788105,1738788645422,-500.0,0.00013835,2]
[351788107,1738788645431,-500.0,0.00013835,2]
[351788109,1738788645442,-500.0,0.00013835,2]
[351788111,1738788645452,-1248.32,0.00013835,2]
[351788113,1738788645461,-610.92,0.00013835,2]
[351788115,1738788645471,-539.93,0.00013835,2]
[351788117,1738788645481,-500.0,0.00013835,2]
[351788119,1738788645492,-500.0,0.00013835,2]
[351788121,1738788645502,-500.0,0.00013835,2]
[351788123,1738788645510,-500.0,0.00013835,2]
[351788125,1738788645520,-500.0,0.00013835,2]
[351788127,1738788645529,-721.96,0.00013835,2]
[351788129,1738788645539,-573.65265683,0.00013835,2]
[351788131,1738788645549,-500.0,0.00013835,2]
[351788133,1738788645559,-520.20760852,0.00013835,2]
[351788135,1738788645568,-500.0,0.00013835,2]
[351788137,1738788645578,-500.0,0.00013835,2]
[351788139,1738788645587,-500.0,0.00013835,2]
[351788141,1738788645598,-500.0,0.00013835,2]
[351788143,1738788645608,-500.0,0.00013835,2]
[351788146,1738788645617,-500.0,0.00013835,2]
[351788148,1738788645627,-500.0,0.00013835,2]
[351788149,1738788645636,-500.0,0.00013835,2]
[351788152,1738788645646,-503.97,0.00013835,2]
[351788154,1738788645656,-635.18,0.00013835,2]
[351788155,1738788645665,-500.0,0.00013835,2]
[351788158,1738788645675,-500.0,0.00013835,2]
[351788160,1738788645684,-500.0,0.00013835,2]
[351788162,1738788645695,-500.0,0.00013835,2]
[351788164,1738788645705,-500.0,0.00013835,2]
[351788166,1738788645715,-501.15220094,0.00013835,2]
[351788169,1738788645724,-297.93648358,0.00013835,2]
[351788171,1738788645734,-500.0,0.00013835,2]
[351788174,1738788645748,-590.19,0.00013835,2]
[351788176,1738788645758,-500.0,0.00013835,2]
[351788178,1738788645767,-500.0,0.00013835,2]
[351788180,1738788645777,-500.0,0.00013835,2]
[351788182,1738788645787,-500.0,0.00013835,2]
[351788184,1738788645797,-500.0,0.00013835,2]
[351788186,1738788645807,-500.0,0.00013835,2]
[351788188,1738788645816,-500.0,0.00013835,2]
[351788190,1738788645825,-500.0,0.00013835,2]
[351788193,1738788645835,-783.46,0.00013835,2]
[351788195,1738788645845,-500.0,0.00013835,2]
[351788197,1738788645854,-500.0,0.00013835,2]
[351788199,1738788645864,-500.0,0.00013835,2]
[351788201,1738788645874,-500.0,0.00013835,2]
[351788203,1738788645884,-1442.63,0.00013835,2]
[351788205,1738788645895,-500.0,0.00013835,2]
[351788207,1738788645907,-3449.98,0.00013835,2]
[351788209,1738788645917,-500.0,0.00013835,2]
[351788211,1738788645927,-768.87,0.00013835,2]
[351788213,1738788645938,-1091.08,0.00013835,2]
[351788216,1738788645948,-508.1595289,0.00013835,2]
[351788218,1738788645958,-500.0,0.00013835,2]
[351788220,1738788645968,-500.0,0.00013835,2]
[351788224,1738788645981,-500.0,0.00013835,2]
[351788226,1738788645991,-500.0,0.00013835,2]
[351788228,1738788646000,-500.0,0.00013835,2]
[351788230,1738788646010,-500.0,0.00013835,2]
[351788231,1738788646020,-500.0,0.00013835,2]
[351788251,1738788646030,-529.19,0.00013835,2]
[351788253,1738788646216,-500.0,0.00013835,2]
[351788256,1738788646226,-500.0,0.00013835,2]
[351788258,1738788646237,-193.41356865,0.00013835,2]
[351788260,1738788646250,-1100.61,0.00013835,2]
[351788262,1738788646260,-500.0,0.00013835,2]
[351788264,1738788646270,-500.0,0.00013835,2]
[351788266,1738788646281,-500.0,0.00013835,2]
[351788268,1738788646291,-500.0,0.00013835,2]
[351788270,1738788646301,-500.0,0.00013835,2]
[351788272,1738788646311,-500.0,0.00013835,2]
[351788274,1738788646321,-500.0,0.00013835,2]
[351788276,1738788646330,-500.0,0.00013835,2]
[351788278,1738788646340,-1241.32,0.00013835,2]
[351788280,1738788646350,-500.0,0.00013835,2]
[351788282,1738788646359,-500.0,0.00013835,2]
[351788284,1738788646368,-933.09,0.00013835,2]
[351788286,1738788646379,-500.0,0.00013835,2]
[351788288,1738788646388,-517.53111765,0.00013835,2]
[351788289,1738788646399,-743.99,0.00013835,2]
[351788290,1738788646409,-503.39,0.00013835,2]
[351788291,1738788646420,-545.04,0.00013835,2]
[351788292,1738788646430,-753.51,0.00013835,2]
[351788293,1738788646440,-568.84,0.00013835,2]
[351788294,1738788646451,-553.33571445,0.00013835,2]
[351788296,1738788646462,-500.0,0.00013835,2]
[351788298,1738788646472,-216.85421115,0.00013835,2]
[351788300,1738788646483,-500.0,0.00013835,2]
[351788302,1738788646495,-500.0,0.00013835,2]
[351788304,1738788646505,-500.0,0.00013835,2]
[351788306,1738788646515,-500.0,0.00013835,2]
[351788308,1738788646525,-500.0,0.00013835,2]
[351788310,1738788646535,-500.0,0.00013835,2]
[351788312,1738788646545,-2330.51,0.00013835,2]
[351788315,1738788646555,-624.39,0.00013835,2]
[351788318,1738788646564,-1682.56,0.00013835,2]
[351788320,1738788646573,-500.0,0.00013835,2]
[351788322,1738788646583,-500.0,0.00013835,2]
[351788325,1738788646593,-825.52,0.00013835,2]
[351788328,1738788646602,-500.0,0.00013835,2]
[351788331,1738788646612,-500.0,0.00013835,2]
[351788334,1738788646621,-599.04,0.00013835,2]
[351788336,1738788646631,-500.0,0.00013835,2]
[351788338,1738788646640,-500.0,0.00013835,2]
[351788340,1738788646649,-500.0,0.00013835,2]
[351788342,1738788646658,-500.0,0.00013835,2]
[351788344,1738788646667,-1815.68,0.00013835,2]
[351788345,1738788646676,-798.36,0.00013835,2]
[351788348,1738788646686,-986.67,0.00013835,2]
[351788350,1738788646695,-500.0,0.00013835,2]
[351788351,1738788646705,-500.0,0.00013835,2]
[351788353,1738788646714,-500.0,0.00013835,2]
[351788356,1738788646724,-500.0,0.00013835,2]
[351788358,1738788646734,-575.3,0.00013835,2]
[351788360,1738788646745,-500.0,0.00013835,2]
[351788362,1738788646754,-500.0,0.00013835,2]
[351788364,1738788646764,-2243.47,0.00013835,2]
[351788366,1738788646774,-500.0,0.00013835,2]
[351788368,1738788646784,-500.0,0.00013835,2]
[351788370,1738788646795,-500.0,0.00013835,2]
[351788372,1738788646805,-500.0,0.00013835,2]
[351788374,1738788646814,-794.02,0.00013835,2]
[351788376,1738788646823,-500.0,0.00013835,2]
[351788378,1738788646833,-500.0,0.00013835,2]
[351788380,1738788646843,-500.0,0.00013835,2]
[351788382,1738788646852,-1424.28,0.00013835,2]
[351788384,1738788646862,-500.0,0.00013835,2]
[351788386,1738788646871,-1000.0,0.00013835,2]